bitfinex/quotes_BTCUSD_20230905
["timestamp","ask_amount","ask_price","bid_price","bid_amount"]
[1693893199240,0.1662,25744.0,25740.0,2.28703527]
[1693893199489,0.1662,25744.0,25740.0,2.28061527]
[1693893199688,0.1662,25744.0,25740.0,2.28109527]
[1693893199894,0.1662,25744.0,25740.0,2.28121527]
[1693893200071,0.1662,25744.0,25740.0,2.28061527]
[1693893200247,0.1662,25744.0,25740.0,2.28271527]
[1693893200498,0.1662,25744.0,25740.0,2.28649527]
[1693893200907,0.1662,25744.0,25740.0,2.28643527]
[1693893201104,0.1662,25744.0,25740.0,2.28685527]
[1693893201308,0.1662,25744.0,25740.0,2.28727527]
[1693893201516,0.1662,25744.0,25740.0,2.28637527]
[1693893201722,0.1662,25744.0,25740.0,2.28643527]
[1693893201921,0.1662,25744.0,25740.0,2.28703527]
[1693893202122,0.1662,25744.0,25740.0,2.28733527]
[1693893202323,0.1662,25744.0,25740.0,2.28781527]
[1693893202748,0.1662,25744.0,25740.0,2.28685527]
[1693893203150,0.1662,25744.0,25740.0,2.28559527]
[1693893203373,0.1662,25744.0,25740.0,2.28571527]
[1693893203531,0.1662,25744.0,25740.0,2.34353911]
[1693893203730,0.1662,25744.0,25740.0,2.34359911]
[1693893204044,0.1662,25744.0,25740.0,2.34449911]
[1693893204319,0.1662,25744.0,25740.0,2.34305911]
[1693893204578,0.1662,25744.0,25740.0,2.34509911]
[1693893204840,0.1662,25744.0,25740.0,2.48873911]
[1693893205065,0.1662,25744.0,25740.0,2.51369911]
[1693893205327,0.1662,25744.0,25740.0,2.52185911]
[1693893205593,0.1662,25744.0,25740.0,2.51477911]
[1693893205858,0.1662,25744.0,25740.0,2.51105911]
[1693893206091,0.1662,25744.0,25740.0,2.50745911]
[1693893206585,0.1662,25744.0,25740.0,2.50973911]
[1693893206799,0.1662,25744.0,25740.0,2.50961911]
[1693893207050,0.1662,25744.0,25740.0,2.50985911]
[1693893207273,0.1662,25744.0,25740.0,2.51213911]
[1693893207513,0.1662,25744.0,25740.0,2.51873911]
[1693893207733,0.1662,25744.0,25740.0,2.52137911]
[1693893207958,0.1662,25744.0,25740.0,2.93005911]
[1693893208213,0.1662,25744.0,25740.0,2.93581911]
[1693893208421,0.1662,25744.0,25740.0,2.93317911]
[1693893208644,0.1662,25744.0,25740.0,2.93281911]
[1693893208897,0.1662,25744.0,25740.0,2.93245911]
[1693893209126,0.1662,25744.0,25740.0,2.93233911]
[1693893209375,0.1662,25744.0,25740.0,2.93197911]
[1693893209617,0.1662,25744.0,25740.0,2.94301911]
[1693893209887,0.1662,25744.0,25740.0,2.93725911]
[1693893210141,0.1662,25744.0,25740.0,2.93221911]
[1693893210366,0.1662,25744.0,25740.0,2.92981911]
[1693893210634,0.1662,25744.0,25740.0,2.92633911]
[1693893210864,0.1662,25744.0,25740.0,2.92009911]
[1693893211122,0.1662,25744.0,25740.0,2.92405911]
[1693893211347,0.1662,25744.0,25740.0,2.92189911]
[1693893211571,0.1662,25744.0,25740.0,2.92033911]
[1693893211830,0.1662,25744.0,25740.0,2.91481911]
[1693893212044,0.1662,25744.0,25740.0,2.91457911]
[1693893212205,0.1662,25744.0,25740.0,2.91505911]
[1693893212528,0.0196,25745.0,25744.0,0.06]
[1693893212732,0.0196,25745.0,25744.0,1.30090338]
[1693893212953,0.0196,25750.0,25747.0,0.06]
[1693893213176,0.0196,25750.0,25748.0,1.82295438]
[1693893213393,0.0196,25750.0,25749.0,0.3]
[1693893213605,0.0196,25750.0,25749.0,1.733363]
[1693893213809,0.0196,25750.0,25749.0,1.735463]
[1693893214012,0.0196,25750.0,25749.0,2.12054827]
[1693893214229,0.0196,25750.0,25749.0,2.12480827]
[1693893214437,0.0196,25750.0,25749.0,2.12354827]
[1693893214637,0.0196,25750.0,25749.0,2.12480827]
[1693893214844,0.0196,25750.0,25749.0,2.12378827]
[1693893215049,0.0196,25750.0,25749.0,2.12420827]
[1693893215260,0.0196,25750.0,25749.0,2.14944827]
[1693893215457,0.0196,25750.0,25749.0,2.14908827]
[1693893215694,0.04149333,25750.0,25749.0,2.14974827]
[1693893215916,0.28137034,25750.0,25749.0,1.99324827]
[1693893216119,0.28137034,25750.0,25749.0,1.606603]
[1693893216324,0.30189697,25750.0,25749.0,1.606603]
[1693893216529,0.30189697,25750.0,25749.0,1.631603]
[1693893216733,0.06201996,25750.0,25749.0,1.631603]
[1693893217149,0.06201996,25750.0,25749.0,1.606603]
[1693893217355,0.06201996,25750.0,25749.0,1.631603]
[1693893223154,0.33257093,25750.0,25749.0,1.631603]
[1693893226265,0.33257093,25750.0,25749.0,1.821603]
[1693893227224,0.33257093,25750.0,25749.0,1.521603]
[1693893230102,0.33257093,25750.0,25749.0,1.094402]
[1693893232470,0.33257093,25750.0,25749.0,0.667201]
[1693893232683,1.00411896,25750.0,25749.0,0.24]
[1693893232881,3.14269696,25750.0,25749.0,0.24]
[1693893233059,2.96416223,25750.0,25749.0,0.24]
[1693893233495,2.87876223,25750.0,25749.0,0.215]
[1693893233945,2.87876223,25750.0,25749.0,0.19]
[1693893234328,2.87876223,25750.0,25749.0,0.215]
[1693893234564,2.87876223,25750.0,25749.0,0.19]
[1693893234971,2.96536223,25750.0,25749.0,0.19]
[1693893235373,2.96536223,25750.0,25749.0,0.215]
[1693893235709,2.96536223,25750.0,25749.0,0.19]
[1693893236114,2.96736223,25750.0,25749.0,0.19]
[1693893238252,2.96736223,25750.0,25749.0,0.11042503]
[1693893238465,3.3540075,25750.0,25749.0,0.11042503]
[1693893239474,2.96736223,25750.0,25749.0,0.11042503]
[1693893242597,3.22872074,25750.0,25749.0,0.11042503]
[1693893243014,2.96736223,25750.0,25749.0,0.11042503]
[1693893245174,3.06034247,25750.0,25749.0,0.11042503]
[1693893246036,3.24104041,25750.0,25749.0,0.11042503]
[1693893246243,3.06034247,25750.0,25749.0,0.11042503]
[1693893246657,3.44698774,25750.0,25749.0,0.11042503]
[1693893247074,3.06034247,25750.0,25749.0,0.11042503]
[1693893248509,0.08,25748.0,25746.0,0.466091]
[1693893248707,0.941362,25748.0,25746.0,0.466091]
[1693893248929,0.01970294,25747.0,25746.0,0.466091]
[1693893249861,0.01970294,25747.0,25746.0,0.485091]
[1693893251064,0.31317814,25747.0,25746.0,0.503091]
[1693893251532,0.31317814,25747.0,25746.0,0.485091]
[1693893251737,0.31317814,25747.0,25746.0,0.503091]
[1693893252371,1.17456714,25747.0,25746.0,0.037]
[1693893252779,1.42894375,25747.0,25746.0,0.037]
[1693893253316,1.44947038,25747.0,25746.0,0.018]
[1693893253692,1.44947038,25747.0,25746.0,0.029]
[1693893254203,2.22625938,25747.0,25746.0,0.011]
[1693893254407,2.22625938,25747.0,25746.0,0.029]
[1693893254627,3.09621845,25747.0,25746.0,0.029]
[1693893255042,3.09621845,25747.0,25746.0,0.011]
[1693893255250,3.09621845,25747.0,25746.0,0.02]
[1693893258393,3.09621845,25747.0,25746.0,0.14]
[1693893258973,3.17621845,25747.0,25746.0,0.14]
[1693893263244,3.19621845,25747.0,25746.0,0.14]
[1693893263855,3.25621845,25747.0,25746.0,0.14]
[1693893265374,3.25621845,25747.0,25746.0,0.13919917]
[1693893266325,3.48379744,25747.0,25746.0,0.13919917]
[1693893270464,3.57677768,25747.0,25746.0,0.13919917]
[1693893270670,3.48379744,25747.0,25746.0,0.13919917]
[1693893271098,3.57677768,25747.0,25746.0,0.13919917]
[1693893277271,3.71624805,25747.0,25746.0,0.13919917]
[1693893278334,3.62326781,25747.0,25746.0,0.13919917]
[1693893279452,3.39568882,25747.0,25746.0,0.13919917]
[1693893279666,3.82916037,25747.0,25746.0,0.13919917]
[1693893279875,3.99259921,25747.0,25746.0,0.13919917]
[1693893280278,4.17898471,25747.0,25746.0,0.13919917]
[1693893280481,3.99259921,25747.0,25746.0,0.129]
[1693893280680,3.99659921,25747.0,25746.0,0.122]
[1693893281314,4.18297812,25747.0,25746.0,0.122]
[1693893281962,4.17897812,25747.0,25746.0,0.129]
[1693893282447,4.17897812,25747.0,25746.0,0.122]
[1693893282448,4.18297812,25747.0,25746.0,0.122]
[1693893282694,3.99659921,25747.0,25746.0,0.122]
[1693893282898,4.1849725,25747.0,25746.0,0.124]
[1693893283099,4.18497245,25747.0,25746.0,0.124]
[1693893286474,4.15074859,25747.0,25746.0,0.124]
[1693893287703,4.06614859,25747.0,25746.0,0.124]
[1693893292239,4.29903515,25747.0,25746.0,0.124]
[1693893294574,4.55251276,25747.0,25746.0,0.124]
[1693893294778,4.29903515,25747.0,25746.0,0.124]
[1693893295603,4.58464801,25747.0,25746.0,0.124]
[1693893295799,4.51806391,25747.0,25746.0,0.124]
[1693893296198,3.97603366,25747.0,25746.0,0.124]
[1693893297194,4.26132764,25747.0,25746.0,0.124]
[1693893297391,3.70695103,25747.0,25746.0,0.124]
[1693893297615,0.97592217,25747.0,25746.0,0.124]
[1693893297827,0.06622957,25747.0,25746.0,0.124]
[1693893298021,0.84301857,25747.0,25746.0,0.124]
[1693893298688,1.06569688,25747.0,25746.0,0.124]
[1693893298916,1.05969688,25747.0,25746.0,0.12]
[1693893299155,1.07469688,25747.0,25746.0,0.122]
[1693893299352,1.87148588,25747.0,25746.0,0.124]
[1693893301288,1.88648588,25747.0,25746.0,0.126]
[1693893302366,1.88648588,25747.0,25746.0,0.592091]
[1693893302367,0.11022957,25747.0,25746.0,0.592091]
[1693893302635,0.11022957,25747.0,25746.0,0.126]
[1693893303469,0.11022957,25747.0,25746.0,0.592091]
[1693893305240,0.11022957,25747.0,25746.0,0.466091]
[1693893305455,0.11022957,25747.0,25746.0,0.44315877]
[1693893307561,0.09022957,25747.0,25746.0,0.932182]
[1693893307773,0.09022957,25747.0,25746.0,1.398273]
[1693893308013,0.11022957,25747.0,25746.0,0.932182]
[1693893308255,0.40590322,25747.0,25746.0,0.466091]
[1693893308674,0.40590322,25747.0,25745.0,0.466105]
[1693893308852,0.38590322,25747.0,25746.0,0.466091]
[1693893309421,0.38590322,25747.0,25745.0,0.93221]
[1693893309642,0.35590322,25747.0,25745.0,0.93221]
[1693893309852,0.37090322,25747.0,25745.0,0.93321]
[1693893310277,0.35090322,25747.0,25745.0,0.93321]
[1693893310634,0.36290322,25747.0,25745.0,0.93421]
[1693893311863,0.66176494,25747.0,25745.0,0.93421]
[1693893312091,0.25585744,25746.0,25745.0,0.468107]
[1693893312510,0.29580928,25746.0,25745.0,0.468107]
[1693893312934,0.29580928,25746.0,25745.0,0.467107]
[1693893313302,0.31080928,25746.0,25745.0,0.468107]
[1693893313505,0.31080928,25746.0,25745.0,0.467107]
[1693893313640,0.32280928,25746.0,25745.0,0.468107]
[1693893315329,0.32280928,25746.0,25745.0,0.002]
[1693893315676,0.32280928,25746.0,25744.0,0.54563101]
[1693893315889,0.32280928,25746.0,25744.0,0.932234]
[1693893316095,0.2694713,25745.0,25744.0,0.932234]
[1693893316503,0.28915577,25745.0,25744.0,0.932234]
[1693893317758,0.29515577,25745.0,25744.0,0.932234]
[1693893317964,0.31839366,25745.0,25744.0,0.932234]
[1693893318985,0.31839366,25745.0,25744.0,0.466117]
[1693893319183,0.04892236,25745.0,25744.0,0.932234]
[1693893333333,0.04892236,25745.0,25744.0,0.466117]
[1693893333533,0.33980549,25745.0,25744.0,0.466117]
[1693893338899,0.33980549,25745.0,25744.0,0.46598046]
[1693893340562,0.33980549,25745.0,25743.0,0.893428]
[1693893341360,0.33380549,25745.0,25743.0,0.893428]
[1693893341558,0.33080549,25745.0,25743.0,0.893428]
[1693893341827,0.33080549,25745.0,25743.0,0.895428]
[1693893342023,0.33080549,25745.0,25743.0,0.900428]
[1693893349249,0.33080549,25745.0,25744.0,0.0846]
[1693893349250,0.03992236,25745.0,25744.0,0.0846]
[1693893349448,0.03992236,25745.0,25744.0,1.017108]
[1693893349772,0.03992236,25745.0,25744.0,1.434132]
[1693893350079,0.03992236,25745.0,25744.0,1.366452]
[1693893350506,0.04292236,25745.0,25744.0,1.366452]
[1693893350882,0.04892236,25745.0,25744.0,1.366452]
[1693893351254,0.04892236,25745.0,25744.0,1.75309727]
[1693893351442,0.04892236,25745.0,25744.0,1.82467727]
[1693893351848,0.04892236,25745.0,25744.0,1.82323727]
[1693893352052,0.04892236,25745.0,25744.0,1.82287727]
[1693893352313,0.04292236,25745.0,25744.0,1.82263727]
[1693893352517,0.04392236,25745.0,25744.0,1.83339727]
[1693893352711,0.04392236,25745.0,25744.0,1.83279727]
[1693893353025,0.04392236,25745.0,25744.0,1.83237727]
[1693893353256,0.04092236,25745.0,25744.0,1.83225727]
[1693893353416,0.04192236,25745.0,25744.0,1.84607727]
[1693893353613,0.04192236,25745.0,25744.0,1.83393727]
[1693893353819,0.03992236,25745.0,25744.0,1.81945727]
[1693893354022,0.04192236,25745.0,25744.0,1.84433727]
[1693893354197,0.04192236,25745.0,25744.0,1.84397727]
[1693893354394,0.04192236,25745.0,25744.0,1.391452]
[1693893358461,0.04192236,25745.0,25744.0,1.77809727]
[1693893358701,0.04192236,25745.0,25744.0,1.84391727]
[1693893358910,0.04192236,25745.0,25744.0,1.77809727]
[1693893361488,0.04192236,25745.0,25744.0,1.69349727]
[1693893361684,0.04192236,25745.0,25744.0,1.77809727]
[1693893365015,0.04192236,25745.0,25744.0,1.69349727]
[1693893365235,0.04192236,25745.0,25744.0,1.77809727]
[1693893384108,0.04192236,25745.0,25744.0,1.581452]
[1693893386225,0.04192236,25745.0,25744.0,0.2996]
[1693893386426,0.04192236,25745.0,25744.0,1.581452]
[1693893405352,0.04192236,25745.0,25744.0,0.215]
[1693893405353,0.27710377,25745.0,25744.0,0.215]
[1693893405551,0.27710377,25745.0,25744.0,0.642284]
[1693893407533,0.27683701,25745.0,25744.0,0.642284]
[1693893409297,0.26916301,25745.0,25744.0,0.642284]
[1693893411121,0.26916301,25745.0,25744.0,0.63461]
[1693893412688,0.0416556,25745.0,25744.0,0.207326]
[1693893412886,2.59062968,25745.0,25744.0,0.207326]
[1693893413095,2.84212885,25745.0,25744.0,0.207326]
[1693893413909,2.84112885,25745.0,25744.0,0.201]
[1693893414297,2.4588026,25745.0,25744.0,0.19]
[1693893414516,2.68545632,25745.0,25744.0,0.192]
[1693893414722,2.4588026,25745.0,25744.0,0.192]
[1693893415135,2.4588026,25745.0,25744.0,0.19]
[1693893415292,2.75429692,25745.0,25744.0,0.19]
[1693893415715,2.54318227,25745.0,25744.0,0.19]
[1693893416258,2.92982754,25745.0,25744.0,0.19]
[1693893418424,3.20348401,25745.0,25744.0,0.19]
[1693893418631,2.92982754,25745.0,25744.0,0.19]
[1693893418849,3.24271091,25745.0,25744.0,0.19]
[1693893419275,3.14955756,25745.0,25744.0,0.19]
[1693893419906,3.2427202,25745.0,25744.0,0.19]
[1693893420116,3.2387202,25745.0,25744.0,0.19]
[1693893420935,3.2537202,25745.0,25744.0,0.192]
[1693893421143,3.2587202,25745.0,25744.0,0.192]
[1693893421523,3.2537202,25745.0,25744.0,0.192]
[1693893421745,3.16055756,25745.0,25744.0,0.192]
[1693893422087,3.2767194,25745.0,25744.0,0.194]
[1693893422300,4.0335684,25745.0,25744.0,0.194]
[1693893422714,4.00040656,25745.0,25744.0,0.194]
[1693893423141,4.24670902,25745.0,25744.0,0.194]
[1693893423367,4.06040656,25745.0,25744.0,0.194]
[1693893423544,4.03940656,25745.0,25744.0,0.192]
[1693893423978,4.109979,25745.0,25744.0,0.193]
[1693893424182,4.086979,25745.0,25744.0,0.191]
[1693893424384,4.06434649,25745.0,25744.0,0.193]
[1693893425018,3.98034649,25745.0,25744.0,0.192]
[1693893425424,3.98034649,25745.0,25744.0,0.191]
[1693893425604,4.00434649,25745.0,25744.0,0.193]
[1693893426253,4.09743083,25745.0,25744.0,0.193]
[1693893427780,3.95776088,25745.0,25744.0,0.193]
[1693893429097,3.9889557,25745.0,25744.0,0.193]
[1693893432399,3.89587136,25745.0,25744.0,0.193]
[1693893443578,4.11224795,25745.0,25744.0,0.193]
[1693893445394,0.02,25743.0,25740.0,0.14585364]
[1693893445693,0.77694,25742.0,25740.0,0.14585364]
[1693893446233,0.81892065,25742.0,25740.0,0.14585364]
[1693893446615,0.81892065,25742.0,25739.0,0.46736364]
[1693893446839,0.29307556,25741.0,25740.0,0.001]
[1693893447367,0.30613164,25741.0,25740.0,0.002]
[1693893447773,1.08310164,25741.0,25740.0,0.002]
[1693893448191,1.86007164,25741.0,25740.0,0.001]
[1693893448416,2.34396608,25741.0,25740.0,0.002]
[1693893448621,2.34396608,25741.0,25737.0,0.593389]
[1693893448622,2.73061135,25741.0,25737.0,0.593389]
[1693893448820,0.26828628,25740.0,25737.0,0.593389]
[1693893449030,0.77703,25739.0,25737.0,0.427389]
[1693893449234,0.79005659,25739.0,25737.0,0.427389]
[1693893450071,0.79205659,25739.0,25737.0,0.439389]
[1693893450268,0.79205659,25739.0,25737.0,0.454389]
[1693893451625,0.79205659,25739.0,25737.0,0.439389]
[1693893452380,1.08240072,25739.0,25737.0,0.439389]
[1693893452515,1.08440072,25739.0,25737.0,0.454389]
[1693893452721,0.02895406,25738.0,25737.0,0.454389]
[1693893453626,0.02895406,25738.0,25737.0,0.439389]
[1693893454001,0.2603482,25738.0,25737.0,0.439389]
[1693893454795,0.27340428,25738.0,25737.0,0.439389]
[1693893455024,0.27540428,25738.0,25737.0,0.454389]
[1693893455237,0.27540428,25738.0,25737.0,0.442389]
[1693893455434,0.27740428,25738.0,25737.0,0.454389]
[1693893459033,1.05446528,25738.0,25737.0,0.027]
[1693893460035,1.83152628,25738.0,25737.0,0.027]
[1693893460258,2.09238191,25738.0,25737.0,0.027]
[1693893463335,2.86944291,25738.0,25737.0,0.027]
[1693893463876,3.25608818,25738.0,25737.0,0.027]
[1693893464219,3.07983255,25738.0,25737.0,0.027]
[1693893464426,3.07783255,25738.0,25737.0,0.012]
[1693893464626,3.07783255,25738.0,25735.0,0.24645252]
[1693893464833,3.07783255,25738.0,25737.0,0.016]
[1693893465051,3.07783255,25738.0,25737.0,0.027]
[1693893465052,3.07983255,25738.0,25737.0,0.027]
[1693893465260,3.07783255,25738.0,25737.0,0.011]
[1693893465694,3.07883255,25738.0,25737.0,0.007]
[1693893465878,3.07683255,25738.0,25737.0,0.007]
[1693893466103,3.23751639,25738.0,25737.0,0.016]
[1693893467095,3.23651639,25738.0,25737.0,0.009]
[1693893467293,3.23751639,25738.0,25737.0,0.016]
[1693893467610,3.0029664,25738.0,25737.0,0.016]
[1693893467812,3.0019664,25738.0,25737.0,0.009]
[1693893468193,3.0119664,25738.0,25737.0,0.001]
[1693893468707,3.26437031,25738.0,25737.0,0.01]
[1693893468941,3.26437031,25738.0,25737.0,0.001]
[1693893468942,3.26337031,25738.0,25737.0,0.001]
[1693893469294,3.27337031,25738.0,25737.0,0.002]
[1693893469616,3.0219664,25738.0,25737.0,0.002]
[1693893478398,3.24327715,25738.0,25737.0,0.002]
[1693893479232,3.0219664,25738.0,25737.0,0.002]
[1693893480265,3.2356348,25738.0,25737.0,0.002]
[1693893484503,2.60786154,25738.0,25737.0,0.002]
[1693893489564,1.83080054,25738.0,25737.0,0.002]
[1693893490771,0.84007114,25738.0,25737.0,0.002]
[1693893491009,0.06301014,25738.0,25737.0,0.002]
[1693893491474,0.84007114,25738.0,25737.0,0.002]
[1693893492374,0.84007114,25738.0,25736.0,0.427407]
[1693893492375,0.06301014,25738.0,25736.0,0.427407]
[1693893492580,0.84007514,25738.0,25736.0,0.854816]
[1693893492778,0.84007514,25738.0,25736.0,0.427407]
[1693893493160,0.82907514,25738.0,25736.0,0.427407]
[1693893493579,0.83107514,25738.0,25735.0,0.854845]
[1693893493796,0.83107514,25738.0,25736.0,0.427409]
[1693893494419,0.82107514,25738.0,25736.0,0.427409]
[1693893494886,0.82207514,25738.0,25736.0,0.427409]
[1693893495074,0.21978462,25737.0,25736.0,0.427409]
[1693893495569,0.24584588,25737.0,25736.0,0.427409]
[1693893495774,0.25848327,25737.0,25736.0,0.427409]
[1693893495950,0.25848327,25737.0,25735.0,0.861845]
[1693893496177,1.03557627,25737.0,25735.0,0.861845]
[1693893496352,1.03657627,25737.0,25735.0,0.861845]
[1693893496552,1.03657627,25737.0,25735.0,0.42742]
[1693893496741,1.03857627,25737.0,25735.0,0.42742]
[1693893497302,1.03657627,25737.0,25735.0,0.42742]
[1693893497681,1.03657627,25737.0,25735.0,0.43442]
[1693893497884,1.81466927,25737.0,25735.0,0.44342]
[1693893498906,1.81466927,25737.0,25735.0,0.016]
[1693893502950,2.59176227,25737.0,25735.0,0.016]
[1693893503626,0.28735339,25736.0,25735.0,0.016]
[1693893503803,1.06447439,25736.0,25735.0,0.016]
[1693893504007,1.10573606,25736.0,25735.0,0.016]
[1693893504436,1.88285706,25736.0,25735.0,0.016]
[1693893504636,2.65997806,25736.0,25735.0,0.016]
[1693893505221,2.65997806,25736.0,25735.0,0.007]
[1693893505422,2.65997806,25736.0,25735.0,0.009]
[1693893505623,2.66097806,25736.0,25735.0,0.009]
[1693893505829,2.66197806,25736.0,25735.0,0.016]
[1693893513095,2.6737058,25736.0,25735.0,0.016]
[1693893518142,3.42962095,25736.0,25735.0,0.016]
[1693893519194,3.06035107,25736.0,25735.0,0.016]
[1693893521263,1.60923141,25736.0,25735.0,0.016]
[1693893525698,1.82515182,25736.0,25735.0,0.016]
[1693893525829,2.60227282,25736.0,25735.0,0.016]
[1693893541301,1.82515182,25736.0,25735.0,0.016]
[1693893544571,1.04803082,25736.0,25735.0,0.016]
[1693893550097,0.27090982,25736.0,25735.0,0.016]
[1693893552093,1.04803082,25736.0,25735.0,0.016]
[1693893553053,0.27090982,25736.0,25735.0,0.016]
[1693893553382,0.05498941,25736.0,25735.0,0.016]
[1693893553585,0.05498941,25736.0,25735.0,1.382899]
[1693893580138,0.05498941,25736.0,25735.0,1.456219]
[1693893580389,0.05498941,25736.0,25735.0,1.454059]
[1693893580530,0.05498941,25736.0,25735.0,1.449619]
[1693893580731,0.05498941,25736.0,25735.0,1.449739]
[1693893580981,0.05498941,25736.0,25735.0,1.448839]
[1693893581181,0.05498941,25736.0,25735.0,1.450159]
[1693893581504,0.05498941,25736.0,25735.0,1.454959]
[1693893581713,0.05498941,25736.0,25735.0,1.84142427]
[1693893581903,0.05498941,25736.0,25735.0,1.84568427]
[1693893582042,0.05498941,25736.0,25735.0,1.84472427]
[1693893582247,0.05498941,25736.0,25735.0,1.84262427]
[1693893582458,0.05498941,25736.0,25735.0,1.83488427]
[1693893582658,0.05498941,25736.0,25735.0,1.76954427]
[1693893590015,0.05498941,25736.0,25735.0,1.86219679]
[1693893592721,0.05498941,25736.0,25735.0,1.76954427]
[1693893593615,0.05498941,25736.0,25735.0,1.86219679]
[1693893595616,0.05498941,25736.0,25735.0,1.92993679]
[1693893595824,0.05498941,25736.0,25735.0,1.93239679]
[1693893596025,0.002,25736.0,25735.0,1.93227679]
[1693893596230,0.002,25736.0,25735.0,1.93233679]
[1693893596557,0.002,25736.0,25735.0,1.93227679]
[1693893596779,0.002,25736.0,25735.0,1.93221679]
[1693893596966,0.002,25736.0,25735.0,1.93071679]
[1693893597168,0.002,25736.0,25735.0,1.93035679]
[1693893597411,0.002,25736.0,25735.0,2.35772979]
[1693893597618,0.002,25736.0,25735.0,2.35778979]
[1693893598094,0.002,25736.0,25735.0,2.35970979]
[1693893598265,0.002,25736.0,25735.0,2.35952979]
[1693893598630,0.002,25736.0,25735.0,2.35862979]
[1693893598809,0.002,25736.0,25735.0,2.35814979]
[1693893599011,0.002,25736.0,25735.0,2.35874979]
[1693893599165,0.002,25736.0,25735.0,2.35880979]
[1693893599379,0.002,25736.0,25735.0,2.35862979]
[1693893599577,0.002,25736.0,25735.0,2.49796858]
[1693893599784,0.05821604,25736.0,25735.0,2.49784858]
[1693893599978,0.05821604,25736.0,25735.0,2.49778858]
[1693893600178,0.05821604,25736.0,25735.0,2.49784858]
[1693893600551,0.05821604,25736.0,25735.0,2.40837606]
[1693893600773,0.05821604,25736.0,25735.0,2.41071606]
[1693893600989,0.05821604,25736.0,25735.0,2.41083606]
[1693893601209,0.05821604,25736.0,25735.0,2.41125606]
[1693893601416,0.05821604,25736.0,25735.0,2.40975606]
[1693893601617,0.05821604,25736.0,25735.0,2.41005606]
[1693893601821,0.05821604,25736.0,25735.0,2.41059606]
[1693893602085,0.05821604,25736.0,25735.0,2.51107606]
[1693893602288,0.44925429,25743.0,25738.0,0.02]
[1693893602502,0.2165,25743.0,25742.0,0.0846]
[1693893602713,0.29878087,25744.0,25742.0,1.09389211]
[1693893602919,0.29878087,25744.0,25742.0,1.52120911]
[1693893603128,0.29878087,25744.0,25742.0,1.366551]
[1693893603553,0.24849734,25745.0,25743.0,0.0846]
[1693893603763,0.25598115,25745.0,25744.0,1.366452]
[1693893604668,0.25598115,25745.0,25744.0,1.36626075]
[1693893604868,0.27598115,25745.0,25744.0,1.36626075]
[1693893605073,0.024,25745.0,25744.0,1.36826075]
[1693893605277,0.048,25745.0,25744.0,1.37026075]
[1693893605455,0.048,25745.0,25744.0,1.370452]
[1693893605688,0.33153921,25745.0,25744.0,1.285852]
[1693893605891,0.33153921,25745.0,25744.0,0.858568]
[1693893606614,0.33153921,25745.0,25744.0,0.85118247]
[1693893608872,1.10838821,25745.0,25744.0,0.004]
[1693893609049,1.88523721,25745.0,25744.0,0.004]
[1693893611088,2.66208621,25745.0,25744.0,0.004]
[1693893611970,2.76519227,25745.0,25744.0,0.004]
[1693893612259,2.99002552,25745.0,25744.0,0.004]
[1693893614426,2.84979227,25745.0,25744.0,0.004]
[1693893614637,2.90302053,25745.0,25744.0,0.004]
[1693893625836,2.99610487,25745.0,25744.0,0.004]
[1693893626050,2.90302053,25745.0,25744.0,0.004]
[1693893626485,2.99610487,25745.0,25744.0,0.004]
[1693893626693,3.38275014,25745.0,25744.0,0.004]
[1693893633825,3.52242009,25745.0,25744.0,0.004]
[1693893637934,3.42933575,25745.0,25744.0,0.004]
[1693893639093,3.65699791,25745.0,25744.0,0.004]
[1693893641381,3.84330037,25745.0,25744.0,0.004]
[1693893644562,3.70363042,25745.0,25744.0,0.004]
[1693893645354,3.9597602,25745.0,25744.0,0.004]
[1693893648321,4.21830376,25745.0,25744.0,0.004]
[1693893651246,3.9597602,25745.0,25744.0,0.004]
[1693893651972,4.19264676,25745.0,25744.0,0.004]
[1693893654263,4.0063443,25745.0,25744.0,0.004]
[1693893660659,4.29938158,25745.0,25744.0,0.004]
[1693893660991,4.0063443,25745.0,25744.0,0.004]
[1693893661603,4.28607464,25745.0,25744.0,0.004]
[1693893661797,4.0063443,25745.0,25744.0,0.004]
[1693893662225,4.28235155,25745.0,25744.0,0.004]
[1693893662903,4.0063443,25745.0,25744.0,0.004]
[1693893667328,4.55030674,25745.0,25744.0,0.004]
[1693893667563,4.57030674,25745.0,25744.0,0.004]
[1693893672297,4.63030674,25745.0,25744.0,0.004]
[1693893672979,4.66921586,25745.0,25744.0,0.004]
[1693893674827,5.3281566,25745.0,25744.0,0.004]
[1693893675028,5.3481566,25745.0,25744.0,0.004]
[1693893675252,5.42023585,25745.0,25744.0,0.004]
[1693893677636,0.02,25741.0,25736.0,0.15528726]
[1693893677835,0.0846,25739.0,25736.0,0.00098726]
[1693893678042,1.94076727,25738.0,25736.0,0.00098726]
[1693893678292,2.77043507,25738.0,25734.0,0.03889]
[1693893678494,3.54749607,25738.0,25734.0,0.03889]
[1693893679157,3.70296507,25738.0,25736.0,0.004]
[1693893679758,3.70296507,25738.0,25734.0,0.03889]
[1693893679963,3.70696507,25738.0,25734.0,0.04289]
[1693893680370,0.22795146,25737.0,25734.0,0.03889]
[1693893680574,2.71800827,25736.0,25734.0,0.03889]
[1693893681223,0.00970795,25735.0,25734.0,0.03889]
[1693893681344,1.56400995,25735.0,25733.0,0.03889]
[1693893682639,1.56600995,25735.0,25733.0,0.03889]
[1693893682936,1.56600995,25735.0,25734.0,0.004]
[1693893683321,1.56600995,25735.0,25733.0,0.03889]
[1693893684053,1.56800995,25735.0,25733.0,0.04289]
[1693893684868,1.56600995,25735.0,25733.0,0.04289]
[1693893685218,1.56800995,25735.0,25733.0,0.04289]
[1693893685424,1.56600995,25735.0,25733.0,0.04289]
[1693893685621,0.27659362,25734.0,25733.0,0.04289]
[1693893686057,1.05377462,25734.0,25733.0,0.04289]
[1693893686273,0.27659362,25734.0,25733.0,0.04289]
[1693893686489,1.05377462,25734.0,25733.0,0.03889]
[1693893686897,1.05577462,25734.0,25733.0,0.04289]
[1693893687302,1.05777462,25734.0,25733.0,0.04289]